[Event "GrandPrix_30.05"]
[Site "Chess.com"]
[Date "2020.05.30"]
[Round "5"]
[White "BogdanBelyakov89"]
[Black "MasterSonnevanck2"]
[Result "1/2-1/2"]
[WhiteElo "2274"]
[BlackElo "2157"]
[TimeControl "600+2"]
[EndTime "10:27:18 PDT"]
[Termination "Game drawn - insufficient material"]

1. e4 {[%clk 0:10:01.9]} 1... e5 {[%clk 0:10:00.2]} 2. Nf3 {[%clk 0:10:01.3]}
2... Nc6 {[%clk 0:10:01.6]} 3. Bc4 {[%clk 0:09:51.9]} 3... Nf6 {[%clk 0:10:02]}
4. d4 {[%clk 0:09:46.6]} 4... exd4 {[%clk 0:10:01.3]} 5. Ng5 {[%clk 0:08:40.3]}
5... d5 {[%clk 0:09:57.8]} 6. exd5 {[%clk 0:08:40.6]} 6... Qe7+ {[%clk
0:09:55.4]} 7. Kf1 {[%clk 0:08:24.7]} 7... Ne5 {[%clk 0:09:54.8]} 8. Qxd4 {[%clk
0:08:24.5]} 8... Nxc4 {[%clk 0:09:46]} 9. Qxc4 {[%clk 0:08:25.1]} 9... h6 {[%clk
0:09:15.8]} 10. Nf3 {[%clk 0:08:21.8]} 10... Qc5 {[%clk 0:09:15.2]} 11. Qxc5
{[%clk 0:07:53.6]} 11... Bxc5 {[%clk 0:09:14.2]} 12. Nc3 {[%clk 0:07:10.8]}
12... Bf5 {[%clk 0:08:50.7]} 13. Be3 {[%clk 0:07:09.6]} 13... Bxe3 {[%clk
0:08:44.4]} 14. fxe3 {[%clk 0:06:52.1]} 14... Bxc2 {[%clk 0:08:41.5]} 15. Nd4
{[%clk 0:05:29.9]} 15... Bd3+ {[%clk 0:08:35.8]} 16. Kf2 {[%clk 0:05:30.4]}
16... O-O-O {[%clk 0:08:07.8]} 17. Rhd1 {[%clk 0:05:30.5]} 17... Ne4+ {[%clk
0:07:41.9]} 18. Kf3 {[%clk 0:05:27.6]} 18... Nxc3 {[%clk 0:07:38.2]} 19. bxc3
{[%clk 0:05:28.6]} 19... Bg6 {[%clk 0:07:24.4]} 20. e4 {[%clk 0:05:23.6]} 20...
Rhe8 {[%clk 0:06:52.6]} 21. Re1 {[%clk 0:05:24.1]} 21... Rd6 {[%clk 0:06:44.5]}
22. g4 {[%clk 0:04:52.5]} 22... h5 {[%clk 0:06:09.6]} 23. h3 {[%clk 0:03:58.5]}
23... hxg4+ {[%clk 0:06:08.3]} 24. hxg4 {[%clk 0:03:58.1]} 24... Ra6 {[%clk
0:05:17.9]} 25. a4 {[%clk 0:03:51.5]} 25... Rh8 {[%clk 0:04:42.6]} 26. Kf4
{[%clk 0:03:32.3]} 26... Rh2 {[%clk 0:04:18.2]} 27. Re3 {[%clk 0:03:17.6]} 27...
Rf6+ {[%clk 0:03:38.7]} 28. Nf5 {[%clk 0:03:14.3]} 28... Rf2+ {[%clk 0:03:07.6]}
29. Rf3 {[%clk 0:02:58.3]} 29... Rxf3+ {[%clk 0:03:07]} 30. Kxf3 {[%clk
0:02:58]} 30... Bxf5 {[%clk 0:03:07.7]} 31. gxf5 {[%clk 0:02:55.9]} 31... g6
{[%clk 0:02:59.3]} 32. Kf4 {[%clk 0:02:55.9]} 32... gxf5 {[%clk 0:02:58.4]} 33.
e5 {[%clk 0:02:54.7]} 33... Rh6 {[%clk 0:02:53.1]} 34. Kxf5 {[%clk 0:02:35]}
34... Kd7 {[%clk 0:02:53.8]} 35. a5 {[%clk 0:01:46.4]} 35... Ke7 {[%clk
0:02:49.1]} 36. Rb1 {[%clk 0:01:45.8]} 36... b6 {[%clk 0:02:42.5]} 37. axb6
{[%clk 0:01:42.8]} 37... axb6 {[%clk 0:02:42.8]} 38. Rb4 {[%clk 0:01:29.6]}
38... Rh5+ {[%clk 0:02:42.4]} 39. Kf4 {[%clk 0:01:29.5]} 39... Rh4+ {[%clk
0:02:41.2]} 40. Kg5 {[%clk 0:01:29.4]} 40... Rh1 {[%clk 0:02:05.2]} 41. Rc4
{[%clk 0:01:28.2]} 41... Kd7 {[%clk 0:02:05.1]} 42. Kf5 {[%clk 0:01:26]} 42...
Rf1+ {[%clk 0:01:58.8]} 43. Rf4 {[%clk 0:01:24.9]} 43... Re1 {[%clk 0:01:52.3]}
44. Kf6 {[%clk 0:01:22.7]} 44... Ke8 {[%clk 0:01:45.9]} 45. c4 {[%clk
0:01:03.9]} 45... Re2 {[%clk 0:01:40.7]} 46. Rf1 {[%clk 0:01:02.4]} 46... Re3
{[%clk 0:01:28]} 47. Rc1 {[%clk 0:01:00.7]} 47... Rf3+ {[%clk 0:01:27.9]} 48.
Kg5 {[%clk 0:01:01.2]} 48... Kd7 {[%clk 0:01:22.6]} 49. Rh1 {[%clk 0:00:50.6]}
49... Ke7 {[%clk 0:01:14.3]} 50. Rh7 {[%clk 0:00:50.6]} 50... Rf2 {[%clk
0:00:58.5]} 51. e6 {[%clk 0:00:50.7]} 51... Rf1 {[%clk 0:00:55.4]} 52. Kg4
{[%clk 0:00:46.8]} 52... Rf2 {[%clk 0:00:54]} 53. Rxf7+ {[%clk 0:00:36.2]} 53...
Rxf7 {[%clk 0:00:53.2]} 54. exf7 {[%clk 0:00:38.1]} 54... Kxf7 {[%clk 0:00:54]}
55. Kf5 {[%clk 0:00:40]} 55... Ke7 {[%clk 0:00:54.9]} 56. Ke5 {[%clk 0:00:39.1]}
56... Kd7 {[%clk 0:00:55.3]} 57. Ke4 {[%clk 0:00:38.9]} 57... Kd6 {[%clk
0:00:55.4]} 58. Kd4 {[%clk 0:00:39.7]} 58... Kd7 {[%clk 0:00:56]} 59. c5 {[%clk
0:00:39.2]} 59... bxc5+ {[%clk 0:00:56.1]} 60. Kxc5 {[%clk 0:00:41.1]} 60... Kd8
{[%clk 0:00:56.4]} 61. Kc6 {[%clk 0:00:41.9]} 61... Kc8 {[%clk 0:00:56.7]} 62.
d6 {[%clk 0:00:43.8]} 62... cxd6 {[%clk 0:00:57.3]} 63. Kxd6 {[%clk 0:00:45.7]}
1/2-1/2

[Event "GrandPrix_30.05"]
[Site "Chess.com"]
[Date "2020.05.30"]
[Round "5"]
[White "SuperFineHipster"]
[Black "Vesper2018"]
[Result "1-0"]
[WhiteElo "2198"]
[BlackElo "1962"]
[TimeControl "600+2"]
[EndTime "10:27:19 PDT"]
[Termination "SuperFineHipster won by resignation"]

1. Nf3 {[%clk 0:09:48.9]} 1... Nf6 {[%clk 0:09:59.9]} 2. c4 {[%clk 0:09:47.9]}
2... g6 {[%clk 0:09:58]} 3. d4 {[%clk 0:09:49.4]} 3... Bg7 {[%clk 0:09:59]} 4.
Nc3 {[%clk 0:09:50.9]} 4... O-O {[%clk 0:09:59.7]} 5. e4 {[%clk 0:09:52]} 5...
d6 {[%clk 0:10:00.2]} 6. Be2 {[%clk 0:09:52.9]} 6... e5 {[%clk 0:10:00.1]} 7. d5
{[%clk 0:09:54.3]} 7... a5 {[%clk 0:09:57.3]} 8. Bg5 {[%clk 0:09:54.8]} 8... h6
{[%clk 0:09:53.7]} 9. Be3 {[%clk 0:09:55.1]} 9... Ng4 {[%clk 0:09:49]} 10. Bd2
{[%clk 0:09:56.4]} 10... f5 {[%clk 0:09:49.2]} 11. exf5 {[%clk 0:09:54.8]} 11...
gxf5 {[%clk 0:09:48.9]} 12. h3 {[%clk 0:09:56.4]} 12... Nf6 {[%clk 0:09:50]} 13.
Qc1 {[%clk 0:09:57.7]} 13... Kh7 {[%clk 0:09:41.2]} 14. g4 {[%clk 0:09:58.6]}
14... Ng8 {[%clk 0:08:38.9]} 15. Qc2 {[%clk 0:09:21.9]} 15... e4 {[%clk
0:07:23.8]} 16. gxf5 {[%clk 0:09:14.2]} 16... Bxf5 {[%clk 0:07:22.6]} 17. Nxe4
{[%clk 0:08:45.2]} 17... Qe7 {[%clk 0:06:50.7]} 18. Bd3 {[%clk 0:08:16.2]} 18...
Re8 {[%clk 0:05:22.2]} 19. O-O-O {[%clk 0:08:10]} 19... Bxe4 {[%clk 0:05:22.9]}
20. Rhe1 {[%clk 0:07:37.9]} 20... Nf6 {[%clk 0:05:19.4]} 21. Nd4 {[%clk
0:06:38.6]} 21... Nbd7 {[%clk 0:03:28]} 22. Nf5 {[%clk 0:05:24]} 22... Bxd3
{[%clk 0:02:06.3]} 23. Rxe7 {[%clk 0:03:19]} 23... Bxc2 {[%clk 0:02:06.3]} 24.
Rxg7+ {[%clk 0:03:19.9]} 24... Kh8 {[%clk 0:02:07.8]} 25. Kxc2 {[%clk
0:03:21.4]} 25... Re2 {[%clk 0:01:35]} 26. Rg6 {[%clk 0:03:12.2]} 26... Ng8
{[%clk 0:00:56]} 27. f4 {[%clk 0:02:48.1]} 27... Nc5 {[%clk 0:00:31.8]} 28. Kc1
{[%clk 0:02:20.8]} 28... Ne4 {[%clk 0:00:19.1]} 29. Be3 {[%clk 0:02:21.5]} 29...
Rxe3 {[%clk 0:00:04.1]} 30. Nxe3 {[%clk 0:02:21.8]} 30... Rf8 {[%clk 0:00:04.1]}
31. Rdg1 {[%clk 0:02:21.7]} 31... Nf2 {[%clk 0:00:04.4]} 32. f5 {[%clk
0:02:01.9]} 32... Nxh3 {[%clk 0:00:05.1]} 33. Rh1 {[%clk 0:01:51.7]} 33... Nf2
{[%clk 0:00:05.4]} 34. Rh4 {[%clk 0:01:44.2]} 34... Nd3+ {[%clk 0:00:05.4]} 35.
Kc2 {[%clk 0:01:44.6]} 35... Ne5 {[%clk 0:00:06.3]} 36. Re6 {[%clk 0:01:44.4]}
36... Nf3 {[%clk 0:00:06.1]} 37. Rhe4 {[%clk 0:01:21.1]} 37... Nf6 {[%clk
0:00:06.5]} 38. Rf4 {[%clk 0:01:10.3]} 38... Ne5 {[%clk 0:00:05]} 39. Re7 {[%clk
0:01:07]} 39... c6 {[%clk 0:00:05.9]} 40. Rxb7 {[%clk 0:01:03.7]} 40... cxd5
{[%clk 0:00:07.3]} 41. Nxd5 {[%clk 0:01:04.3]} 41... Nfd7 {[%clk 0:00:05.5]} 42.
f6 {[%clk 0:01:00.6]} 42... Rf7 {[%clk 0:00:04.2]} 43. Ra7 {[%clk 0:00:56]}
43... Kh7 {[%clk 0:00:04.1]} 44. Rxa5 {[%clk 0:00:55.1]} 44... h5 {[%clk
0:00:05.3]} 45. Ra3 {[%clk 0:00:47.4]} 45... Kh6 {[%clk 0:00:05.1]} 46. Rh3
{[%clk 0:00:42.2]} 46... Nf8 {[%clk 0:00:02.5]} 47. Rf5 {[%clk 0:00:40.3]} 47...
Ne6 {[%clk 0:00:02.7]} 48. Rhxh5+ {[%clk 0:00:34.7]} 48... Kg6 {[%clk
0:00:04.1]} 49. Ne7+ {[%clk 0:00:35.1]} 49... Rxe7 {[%clk 0:00:05.5]} 50. fxe7
{[%clk 0:00:36.5]} 50... Nd4+ {[%clk 0:00:06.4]} 51. Kb1 {[%clk 0:00:35.3]}
51... Nxf5 {[%clk 0:00:06.8]} 52. e8=Q+ {[%clk 0:00:34.9]} 1-0

[Event "GrandPrix_30.05"]
[Site "Chess.com"]
[Date "2020.05.30"]
[Round "5"]
[White "Shahinyan_ChessMood"]
[Black "kostasam18"]
[Result "1-0"]
[WhiteElo "2411"]
[BlackElo "2105"]
[TimeControl "600+2"]
[EndTime "10:27:21 PDT"]
[Termination "Shahinyan_ChessMood won on time"]

1. e4 {[%clk 0:10:01.9]} 1... e5 {[%clk 0:09:59.4]} 2. Nf3 {[%clk 0:09:49.8]}
2... Nc6 {[%clk 0:09:58.7]} 3. d4 {[%clk 0:09:48.6]} 3... exd4 {[%clk
0:09:58.6]} 4. Nxd4 {[%clk 0:09:50.5]} 4... Nf6 {[%clk 0:09:58.9]} 5. Nxc6
{[%clk 0:09:47.3]} 5... bxc6 {[%clk 0:10:00.8]} 6. e5 {[%clk 0:09:48.8]} 6...
Qe7 {[%clk 0:10:00.4]} 7. Qe2 {[%clk 0:09:50]} 7... Nd5 {[%clk 0:10:00.9]} 8. h4
{[%clk 0:09:51.5]} 8... Qe6 {[%clk 0:09:58]} 9. Nd2 {[%clk 0:09:50.6]} 9... a5
{[%clk 0:09:57]} 10. a3 {[%clk 0:09:20.2]} 10... Ba6 {[%clk 0:09:39.9]} 11. c4
{[%clk 0:09:16.6]} 11... Nb6 {[%clk 0:09:17.1]} 12. g3 {[%clk 0:09:09.2]} 12...
d5 {[%clk 0:09:02.1]} 13. exd6 {[%clk 0:08:14]} 13... Qxe2+ {[%clk 0:08:47.2]}
14. Bxe2 {[%clk 0:08:15.9]} 14... cxd6 {[%clk 0:08:46.5]} 15. b4 {[%clk
0:08:13.3]} 15... axb4 {[%clk 0:08:40.3]} 16. axb4 {[%clk 0:08:15.2]} 16... Bb7
{[%clk 0:08:33.1]} 17. Rxa8+ {[%clk 0:08:03.8]} 17... Bxa8 {[%clk 0:08:29.8]}
18. Bb2 {[%clk 0:07:45.1]} 18... f6 {[%clk 0:08:26]} 19. O-O {[%clk 0:07:19.4]}
19... Be7 {[%clk 0:08:18.7]} 20. Ra1 {[%clk 0:07:15.4]} 20... O-O {[%clk
0:08:00.5]} 21. Ra7 {[%clk 0:07:12.2]} 21... Re8 {[%clk 0:07:53.5]} 22. Bh5
{[%clk 0:06:50.8]} 22... g6 {[%clk 0:07:49.5]} 23. Bf3 {[%clk 0:06:52.2]} 23...
Kf7 {[%clk 0:06:56.4]} 24. Ne4 {[%clk 0:06:38.5]} 24... Ke6 {[%clk 0:06:44.7]}
25. Ng5+ {[%clk 0:04:45.4]} 25... fxg5 {[%clk 0:06:33.8]} 26. Bg4+ {[%clk
0:04:45.6]} 26... Kf7 {[%clk 0:06:32.3]} 27. c5 {[%clk 0:04:23.4]} 27... Nc4
{[%clk 0:05:29.9]} 28. Bc1 {[%clk 0:03:57.1]} 28... Ne5 {[%clk 0:04:57.6]} 29.
cxd6 {[%clk 0:03:26.3]} 29... Nxg4 {[%clk 0:04:52.7]} 30. Bxg5 {[%clk
0:03:27.3]} 30... Nf6 {[%clk 0:04:01.4]} 31. dxe7 {[%clk 0:03:18.9]} 31... c5
{[%clk 0:03:39.5]} 32. bxc5 {[%clk 0:03:05.5]} 32... Be4 {[%clk 0:03:00.8]} 33.
c6 {[%clk 0:02:48.6]} 33... Rxe7 {[%clk 0:02:27.3]} 34. c7 {[%clk 0:02:36.3]}
34... Bf5 {[%clk 0:02:23.2]} 35. Ra6 {[%clk 0:01:52.5]} 35... Re1+ {[%clk
0:00:44.4]} 36. Kg2 {[%clk 0:01:52]} 36... Nd5 {[%clk 0:00:31.6]} 37. Ra5 {[%clk
0:01:41.5]} 37... Nxc7 {[%clk 0:00:20.5]} 38. Ra7 {[%clk 0:01:38.1]} 38... Be4+
{[%clk 0:00:19.9]} 39. f3 {[%clk 0:01:38]} 39... Re2+ {[%clk 0:00:19.5]} 40. Kf1
{[%clk 0:01:33.9]} 40... Bd3 {[%clk 0:00:14.9]} 41. Kg1 {[%clk 0:01:19.9]} 41...
Rc2 {[%clk 0:00:13.6]} 42. Bf4 {[%clk 0:01:21.4]} 42... Be2 {[%clk 0:00:10.8]}
43. Bxc7 {[%clk 0:01:21.6]} 43... Bxf3 {[%clk 0:00:11]} 44. Bf4+ {[%clk
0:01:23]} 44... Ke6 {[%clk 0:00:10.6]} 45. Rxh7 {[%clk 0:01:22.4]} 45... Kf5
{[%clk 0:00:11.9]} 46. Rg7 {[%clk 0:01:12.4]} 46... Be4 {[%clk 0:00:11.4]} 47.
h5 {[%clk 0:01:11.8]} 47... gxh5 {[%clk 0:00:09.7]} 48. Rg5+ {[%clk 0:01:13.7]}
48... Kf6 {[%clk 0:00:07.1]} 49. Rxh5 {[%clk 0:01:15]} 49... Kg6 {[%clk
0:00:07.6]} 50. Re5 {[%clk 0:01:15.6]} 50... Bf3 {[%clk 0:00:05.2]} 51. Kf1
{[%clk 0:01:14.4]} 51... Bg2+ {[%clk 0:00:04.9]} 52. Ke1 {[%clk 0:01:14.6]}
52... Bf3 {[%clk 0:00:06.8]} 53. Bd2 {[%clk 0:01:08.8]} 53... Bg4 {[%clk
0:00:06]} 54. Rg5+ {[%clk 0:01:07.8]} 1-0

[Event "GrandPrix_30.05"]
[Site "Chess.com"]
[Date "2020.05.30"]
[Round "5"]
[White "Kostya_Nikologorskiy"]
[Black "Alexander_Donchenko"]
[Result "0-1"]
[WhiteElo "2209"]
[BlackElo "2597"]
[TimeControl "600+2"]
[EndTime "10:27:21 PDT"]
[Termination "Alexander_Donchenko won by resignation"]

1. e4 {[%clk 0:09:58.8]} 1... Nf6 {[%clk 0:09:56.7]} 2. Nc3 {[%clk 0:09:57.8]}
2... d5 {[%clk 0:09:55.8]} 3. e5 {[%clk 0:09:52.6]} 3... d4 {[%clk 0:09:56.2]}
4. exf6 {[%clk 0:09:53.5]} 4... dxc3 {[%clk 0:09:56.9]} 5. fxg7 {[%clk
0:09:20.6]} 5... cxd2+ {[%clk 0:09:57.3]} 6. Bxd2 {[%clk 0:09:01.2]} 6... Bxg7
{[%clk 0:09:57.1]} 7. c3 {[%clk 0:09:00.1]} 7... Nc6 {[%clk 0:09:52.2]} 8. Nf3
{[%clk 0:08:56.7]} 8... Bg4 {[%clk 0:09:49.2]} 9. h3 {[%clk 0:08:37.3]} 9... Bh5
{[%clk 0:09:47.4]} 10. Be2 {[%clk 0:08:09.4]} 10... Qd6 {[%clk 0:09:38.6]} 11.
Qb3 {[%clk 0:07:19.9]} 11... O-O-O {[%clk 0:08:38.9]} 12. Be3 {[%clk 0:07:15.3]}
12... Bh6 {[%clk 0:07:40.7]} 13. Rd1 {[%clk 0:04:37.4]} 13... Qf6 {[%clk
0:07:33.6]} 14. Rd5 {[%clk 0:03:22.3]} 14... Bxf3 {[%clk 0:06:55.7]} 15. Bxf3
{[%clk 0:03:17.6]} 15... Bxe3 {[%clk 0:06:54.1]} 16. fxe3 {[%clk 0:03:19.5]}
16... Rxd5 {[%clk 0:06:29.9]} 17. Qxd5 {[%clk 0:02:42.4]} 17... Rd8 {[%clk
0:06:21.8]} 18. Qe4 {[%clk 0:02:32.1]} 18... h6 {[%clk 0:05:31.7]} 19. O-O
{[%clk 0:02:28.2]} 19... Qe5 {[%clk 0:05:12]} 20. Qf4 {[%clk 0:01:59.8]} 20...
Qxf4 {[%clk 0:04:43.5]} 21. exf4 {[%clk 0:02:01.7]} 21... Na5 {[%clk 0:04:44.2]}
22. b3 {[%clk 0:01:50.2]} 22... Rd3 {[%clk 0:04:37.1]} 23. Rc1 {[%clk
0:01:47.6]} 23... Rd2 {[%clk 0:04:29.8]} 24. Re1 {[%clk 0:01:47.9]} 24... Kd7
{[%clk 0:03:56.1]} 25. Bh5 {[%clk 0:01:25.1]} 25... f6 {[%clk 0:03:43]} 26. Bg4+
{[%clk 0:01:24.2]} 26... Ke8 {[%clk 0:03:40.7]} 27. Be6 {[%clk 0:01:22.1]} 27...
c5 {[%clk 0:03:27.7]} 28. h4 {[%clk 0:00:50.5]} 28... Nc6 {[%clk 0:03:19.4]} 29.
Re3 {[%clk 0:00:44.1]} 29... Nd8 {[%clk 0:03:15.6]} 30. Bc4 {[%clk 0:00:40.6]}
30... Rxa2 {[%clk 0:03:10]} 31. Rg3 {[%clk 0:00:41.6]} 31... a6 {[%clk
0:02:49.3]} 32. h5 {[%clk 0:00:38.2]} 32... b5 {[%clk 0:02:48.5]} 33. Bd5 {[%clk
0:00:37.2]} 33... Rd2 {[%clk 0:02:31.7]} 34. Rg8+ {[%clk 0:00:31.8]} 34... Kd7
{[%clk 0:02:32.3]} 35. Be4 {[%clk 0:00:33.2]} 35... a5 {[%clk 0:02:19.1]} 36.
Bg6 {[%clk 0:00:26.7]} 36... Kc7 {[%clk 0:01:53.4]} 37. Be8 {[%clk 0:00:27.4]}
37... b4 {[%clk 0:01:49.3]} 38. cxb4 {[%clk 0:00:25.3]} 38... axb4 {[%clk
0:01:49.4]} 39. Rg6 {[%clk 0:00:21.5]} 39... c4 {[%clk 0:01:20.4]} 40. Rxh6
{[%clk 0:00:14]} 40... cxb3 {[%clk 0:01:06.3]} 41. Bg6 {[%clk 0:00:14.6]} 41...
b2 {[%clk 0:01:05.8]} 42. Rh8 {[%clk 0:00:14.3]} 42... b3 {[%clk 0:01:04.6]} 43.
Re8 {[%clk 0:00:14.2]} 43... Kd7 {[%clk 0:00:59.8]} 44. h6 {[%clk 0:00:15]}
44... Rc2 {[%clk 0:00:35.8]} 45. Kh2 {[%clk 0:00:05.2]} 45... b1=Q {[%clk
0:00:35.3]} 46. Rg8 {[%clk 0:00:04.8]} 46... Qf1 {[%clk 0:00:33.1]} 47. Bf5+
{[%clk 0:00:04.1]} 47... Kc7 {[%clk 0:00:33]} 48. h7 {[%clk 0:00:04.3]} 48...
Qxf4+ {[%clk 0:00:32.8]} 49. Rg3 {[%clk 0:00:05.5]} 49... Nf7 {[%clk 0:00:27.1]}
0-1

[Event "GrandPrix_30.05"]
[Site "Chess.com"]
[Date "2020.05.30"]
[Round "5"]
[White "Zakaryan_David"]
[Black "econpower"]
[Result "1-0"]
[WhiteElo "1692"]
[BlackElo "2148"]
[TimeControl "600+2"]
[EndTime "10:27:22 PDT"]
[Termination "Zakaryan_David won by resignation"]

1. e4 {[%clk 0:10:00.2]} 1... d6 {[%clk 0:10:00.4]} 2. d4 {[%clk 0:09:59.9]}
2... Nf6 {[%clk 0:10:00.9]} 3. Nc3 {[%clk 0:10:00.3]} 3... e5 {[%clk 0:10:02]}
4. Nf3 {[%clk 0:10:00.4]} 4... Nbd7 {[%clk 0:10:02.7]} 5. Rg1 {[%clk 0:10:00.9]}
5... g6 {[%clk 0:10:01.9]} 6. g4 {[%clk 0:10:00.8]} 6... Bg7 {[%clk 0:10:03.5]}
7. Be3 {[%clk 0:09:59.4]} 7... O-O {[%clk 0:10:03.3]} 8. h4 {[%clk 0:09:52.2]}
8... Re8 {[%clk 0:09:47.7]} 9. d5 {[%clk 0:09:30.9]} 9... Nc5 {[%clk 0:09:35.5]}
10. Nd2 {[%clk 0:09:29.7]} 10... c6 {[%clk 0:09:26.7]} 11. h5 {[%clk 0:09:21.4]}
11... cxd5 {[%clk 0:07:26]} 12. exd5 {[%clk 0:09:23.3]} 12... e4 {[%clk
0:07:25.9]} 13. hxg6 {[%clk 0:09:03.9]} 13... hxg6 {[%clk 0:07:22.6]} 14. Bb5
{[%clk 0:08:59.5]} 14... Bd7 {[%clk 0:07:20.9]} 15. Bxd7 {[%clk 0:08:55.1]}
15... Qxd7 {[%clk 0:07:21.2]} 16. Qe2 {[%clk 0:08:54.4]} 16... b5 {[%clk
0:07:05.1]} 17. Bxc5 {[%clk 0:08:20.1]} 17... dxc5 {[%clk 0:07:04.4]} 18. Qxb5
{[%clk 0:08:10.8]} 18... e3 {[%clk 0:05:58.6]} 19. fxe3 {[%clk 0:07:49.5]} 19...
Rxe3+ {[%clk 0:05:28.3]} 20. Kd1 {[%clk 0:07:46]} 20... Qxb5 {[%clk 0:05:21.3]}
21. Nxb5 {[%clk 0:07:45.3]} 21... Nxd5 {[%clk 0:05:22.9]} 22. Nc4 {[%clk
0:06:30.5]} 22... Re4 {[%clk 0:05:23]} 23. Nbd6 {[%clk 0:06:28]} 23... Rd4+
{[%clk 0:03:42.9]} 24. Ke2 {[%clk 0:06:27.2]} 24... Nb6 {[%clk 0:03:43.5]} 25.
b3 {[%clk 0:06:05.9]} 25... Nxc4 {[%clk 0:03:42.3]} 26. Nxc4 {[%clk 0:06:03.7]}
26... Re8+ {[%clk 0:03:42.8]} 27. Kf3 {[%clk 0:06:03.5]} 27... Ree4 {[%clk
0:03:31.4]} 28. Ne3 {[%clk 0:05:52]} 28... Rf4+ {[%clk 0:03:29.5]} 29. Ke2
{[%clk 0:05:51.6]} 29... Rde4 {[%clk 0:03:09.3]} 30. Raf1 {[%clk 0:05:44.3]}
30... g5 {[%clk 0:02:30]} 31. Kd3 {[%clk 0:05:24]} 31... Bd4 {[%clk 0:02:28.8]}
32. Nd5 {[%clk 0:05:14.6]} 32... Rxg4 {[%clk 0:02:21.7]} 33. Rxg4 {[%clk
0:05:09.4]} 33... Rxg4 {[%clk 0:02:22.5]} 34. c3 {[%clk 0:05:09.9]} 34... Bg7
{[%clk 0:02:22.4]} 35. Rf5 {[%clk 0:05:06]} 35... Rg2 {[%clk 0:02:00.4]} 36. a4
{[%clk 0:05:00.1]} 36... Bf8 {[%clk 0:02:01.1]} 37. Ne3 {[%clk 0:04:57.9]} 37...
Rg3 {[%clk 0:02:01.3]} 38. Ke4 {[%clk 0:04:55.3]} 38... Rg1 {[%clk 0:01:56.3]}
39. Rd5 {[%clk 0:04:48]} 39... Kg7 {[%clk 0:01:53.2]} 40. Rd7 {[%clk 0:04:35.1]}
40... Rb1 {[%clk 0:01:51.3]} 41. Rb7 {[%clk 0:04:19.3]} 41... Kg6 {[%clk
0:01:50.2]} 42. Rb8 {[%clk 0:04:11.1]} 42... Bg7 {[%clk 0:01:50.4]} 43. b4
{[%clk 0:03:15.5]} 43... Bxc3 {[%clk 0:01:38.6]} 44. b5 {[%clk 0:03:13.7]} 44...
Rb4+ {[%clk 0:01:27]} 45. Kd5 {[%clk 0:03:11.7]} 45... Rxa4 {[%clk 0:01:23.3]}
46. Rg8+ {[%clk 0:03:10.2]} 46... Kh5 {[%clk 0:01:18.3]} 47. Rf8 {[%clk
0:02:54.7]} 47... Rf4 {[%clk 0:01:12.8]} 48. Ra8 {[%clk 0:02:52.4]} 48... Ra4
{[%clk 0:00:45.8]} 49. Kc6 {[%clk 0:02:47.1]} 49... Bd4 {[%clk 0:00:42.4]} 50.
Nd5 {[%clk 0:02:44]} 50... g4 {[%clk 0:00:41.9]} 51. b6 {[%clk 0:02:43.7]} 51...
Ra6 {[%clk 0:00:42.8]} 52. Rxa7 {[%clk 0:02:42.8]} 52... Rxb6+ {[%clk
0:00:36.3]} 53. Nxb6 {[%clk 0:02:38.7]} 53... g3 {[%clk 0:00:33.9]} 54. Ra2
{[%clk 0:02:36.4]} 54... Kg4 {[%clk 0:00:32]} 55. Nc4 {[%clk 0:02:34.3]} 55...
f5 {[%clk 0:00:28.7]} 56. Kd5 {[%clk 0:02:34.3]} 56... f4 {[%clk 0:00:29.8]} 57.
Ke4 {[%clk 0:02:32.1]} 57... f3 {[%clk 0:00:29.9]} 58. Ne3+ {[%clk 0:02:27.2]}
58... Bxe3 {[%clk 0:00:29.7]} 59. Kxe3 {[%clk 0:02:29.1]} 59... f2 {[%clk
0:00:25.9]} 60. Ra1 {[%clk 0:01:40.1]} 60... c4 {[%clk 0:00:26.1]} 61. Ke2
{[%clk 0:01:32]} 61... Kh3 {[%clk 0:00:18.6]} 62. Kf3 {[%clk 0:01:31.8]} 62...
Kh2 {[%clk 0:00:17.5]} 63. Rc1 {[%clk 0:01:28.1]} 63... c3 {[%clk 0:00:18]} 64.
Ra1 {[%clk 0:01:28]} 64... c2 {[%clk 0:00:18.9]} 65. Rc1 {[%clk 0:01:28.2]} 1-0

[Event "GrandPrix_30.05"]
[Site "Chess.com"]
[Date "2020.05.30"]
[Round "5"]
[White "BogdanDeac"]
[Black "GeorgMeier"]
[Result "1/2-1/2"]
[WhiteElo "2554"]
[BlackElo "2649"]
[TimeControl "600+2"]
[EndTime "10:27:23 PDT"]
[Termination "Game drawn by repetition"]

1. Nf3 {[%clk 0:10:01.9]} 1... d5 {[%clk 0:10:00.5]} 2. d4 {[%clk 0:10:01.9]}
2... Nf6 {[%clk 0:09:59.7]} 3. c4 {[%clk 0:10:03.4]} 3... e6 {[%clk 0:09:59.7]}
4. Nc3 {[%clk 0:10:04.9]} 4... Be7 {[%clk 0:09:55.8]} 5. Bf4 {[%clk 0:10:04.5]}
5... O-O {[%clk 0:09:56.3]} 6. e3 {[%clk 0:10:04.6]} 6... Nbd7 {[%clk
0:09:56.9]} 7. Be2 {[%clk 0:09:59.5]} 7... dxc4 {[%clk 0:09:43.2]} 8. O-O {[%clk
0:09:59.7]} 8... Nd5 {[%clk 0:08:11.7]} 9. Bxc4 {[%clk 0:09:57.3]} 9... Nxf4
{[%clk 0:07:59.9]} 10. exf4 {[%clk 0:09:59.2]} 10... Nf6 {[%clk 0:08:01.5]} 11.
Ne5 {[%clk 0:09:05.8]} 11... Bb4 {[%clk 0:07:10]} 12. Qb3 {[%clk 0:08:47.1]}
12... Bxc3 {[%clk 0:06:53.1]} 13. bxc3 {[%clk 0:08:46.9]} 13... g6 {[%clk
0:06:25]} 14. Be2 {[%clk 0:08:03.8]} 14... Nd5 {[%clk 0:06:11.8]} 15. g3 {[%clk
0:07:59.2]} 15... f6 {[%clk 0:06:11]} 16. Nd3 {[%clk 0:07:49.5]} 16... b6 {[%clk
0:06:07.7]} 17. Bf3 {[%clk 0:07:07.1]} 17... Rb8 {[%clk 0:06:06.3]} 18. Rfe1
{[%clk 0:06:24.9]} 18... Ne7 {[%clk 0:03:41.7]} 19. Rad1 {[%clk 0:05:05.1]}
19... Bd7 {[%clk 0:03:08.8]} 20. Bg4 {[%clk 0:03:33.7]} 20... Nf5 {[%clk
0:03:08.9]} 21. Bxf5 {[%clk 0:02:41.6]} 21... gxf5 {[%clk 0:03:09.8]} 22. d5
{[%clk 0:02:42.8]} 22... exd5 {[%clk 0:03:04.5]} 23. Qxd5+ {[%clk 0:02:42.7]}
23... Rf7 {[%clk 0:02:54.7]} 24. Nb4 {[%clk 0:02:37]} 24... Qf8 {[%clk
0:02:40.8]} 25. Nc6 {[%clk 0:02:35.6]} 25... Re8 {[%clk 0:02:41.5]} 26. Nd4
{[%clk 0:01:50.9]} 26... Rxe1+ {[%clk 0:02:07.2]} 27. Rxe1 {[%clk 0:01:51]}
27... Qd6 {[%clk 0:02:08.3]} 28. Qxd6 {[%clk 0:01:20.5]} 28... cxd6 {[%clk
0:02:10.2]} 29. Kf1 {[%clk 0:01:21.8]} 29... Rf8 {[%clk 0:01:56.7]} 30. Re7
{[%clk 0:01:15.1]} 30... Rf7 {[%clk 0:01:57.5]} 31. Re3 {[%clk 0:01:10.7]} 31...
Rf8 {[%clk 0:01:57.8]} 32. Re7 {[%clk 0:00:52.3]} 32... Rf7 {[%clk 0:01:58.9]}
33. Rxf7 {[%clk 0:00:52.9]} 33... Kxf7 {[%clk 0:02:00.8]} 34. Ke2 {[%clk
0:00:54.1]} 34... Ke7 {[%clk 0:01:31.4]} 35. Kd3 {[%clk 0:00:50.4]} 35... Be6
{[%clk 0:01:05.1]} 36. Nc6+ {[%clk 0:00:25.1]} 36... Kd7 {[%clk 0:01:03]} 37.
Nxa7 {[%clk 0:00:23.7]} 37... Bxa2 {[%clk 0:01:00.4]} 38. Nb5 {[%clk 0:00:23.4]}
38... Kc6 {[%clk 0:00:12.2]} 39. Nd4+ {[%clk 0:00:23.7]} 39... Kd5 {[%clk
0:00:13.7]} 40. f3 {[%clk 0:00:19.8]} 40... Bb1+ {[%clk 0:00:13.7]} 41. Kd2
{[%clk 0:00:19.3]} 41... Kc4 {[%clk 0:00:06.6]} 42. h4 {[%clk 0:00:09.3]} 42...
b5 {[%clk 0:00:05.5]} 43. Nc6 {[%clk 0:00:10.3]} 43... d5 {[%clk 0:00:04.8]} 44.
Na5+ {[%clk 0:00:08.9]} 44... Kc5 {[%clk 0:00:05.4]} 45. Nb3+ {[%clk 0:00:09.4]}
45... Kc4 {[%clk 0:00:06.6]} 46. Na5+ {[%clk 0:00:10.3]} 46... Kc5 {[%clk
0:00:08.1]} 47. Nb3+ {[%clk 0:00:11.2]} 47... Kc4 {[%clk 0:00:09.6]} 48. Na5+
{[%clk 0:00:12.1]} 1/2-1/2